fUSD/lending_fUSD_20250811
["ID","MTS","AMOUNT","RATE_DAILY","PERIOD"]
[378519189,1754891464034,-400.0,0.0003041,120]
[378519190,1754891464046,-1008.68,0.0003041,120]
[378519191,1754891464057,-472.17,0.0003041,120]
[378519192,1754891464070,-400.0,0.0003041,120]
[378519193,1754891464082,-900.49,0.0003041,120]
[378519194,1754891464095,-400.89,0.0003041,120]
[378519195,1754891464107,-400.0,0.0003041,120]
[378519196,1754891464119,-400.0,0.0003041,120]
[378519197,1754891464131,-400.0,0.0003041,120]
[378519198,1754891464142,-400.0,0.0003041,120]
[378519199,1754891464154,-988.8,0.0003041,120]
[378519200,1754891464164,-400.0,0.0003041,120]
[378519201,1754891464178,-400.0,0.0003041,120]
[378519202,1754891464189,-400.0,0.0003041,120]
[378519203,1754891464201,-400.0,0.0003041,120]
[378519204,1754891464213,-426.57,0.0003041,120]
[378519205,1754891464225,-400.0,0.0003041,120]
[378519206,1754891464237,-1570.97,0.0003041,120]
[378519207,1754891464249,-520.2,0.0003041,120]
[378519208,1754891464260,-409.51657173,0.0003041,120]
[378519209,1754891464272,-400.0,0.0003041,120]
[378519210,1754891464284,-1000.0,0.0003041,120]
[378519211,1754891464296,-400.0,0.0003041,120]
[378519212,1754891464308,-400.0,0.0003041,120]
[378519213,1754891464321,-400.0,0.0003041,120]
[378519214,1754891464333,-578.57,0.0003041,120]
[378519215,1754891464345,-1137.86,0.0003041,120]
[378519216,1754891464357,-400.0,0.0003041,120]
[378519217,1754891464369,-716.65,0.0003041,120]
[378519218,1754891464381,-400.0,0.0003041,120]
[378519219,1754891464393,-485.62,0.0003041,120]
[378519220,1754891464405,-289.14192334,0.0003041,60]
[378519221,1754891464417,-402.43817097,0.0003041,120]
[378519222,1754891464428,-448.13,0.0003041,120]
[378519223,1754891464440,-400.0,0.0003041,120]
[378519224,1754891464452,-400.0,0.0003041,120]
[378519225,1754891464464,-470.98,0.0003041,120]
[378519226,1754891464476,-400.0,0.0003041,120]
[378519227,1754891464488,-400.0,0.0003041,120]
[378519228,1754891464500,-1240.08,0.0003041,120]
[378519229,1754891464512,-400.0,0.0003041,120]
[378519230,1754891464523,-400.0,0.0003041,120]
[378519231,1754891464535,-522.34,0.0003041,120]
[378519232,1754891464546,-400.0,0.0003041,120]
[378519233,1754891464558,-400.0,0.0003041,120]
[378519234,1754891464571,-401.32392185,0.0003041,2]
[378519235,1754891464584,-419.42781582,0.0003041,120]
[378519236,1754891464596,-982.02,0.0003041,120]
[378519237,1754891464608,-400.0,0.0003041,120]
[378519238,1754891464621,-400.0,0.0003041,120]
[378519239,1754891464632,-932.85,0.0003041,120]
[378519240,1754891464644,-547.84,0.0003041,120]
[378519241,1754891464655,-400.0,0.0003041,120]
[378519242,1754891464666,-400.0,0.0003041,120]
[378519243,1754891464678,-941.55,0.0003041,120]
[378519244,1754891464689,-400.90055569,0.0003041,120]
[378519245,1754891464701,-400.0,0.0003041,120]
[378519246,1754891464712,-400.0,0.0003041,120]
[378519247,1754891464724,-400.0,0.0003041,120]
[378519248,1754891464735,-400.0,0.0003041,120]
[378519249,1754891464747,-400.0,0.0003041,120]
[378519250,1754891464759,-472.44292573,0.0003041,120]
[378519251,1754891464771,-400.0,0.0003041,120]
[378519252,1754891464782,-400.0,0.0003041,120]
[378519253,1754891464793,-400.0,0.0003041,120]
[378519254,1754891464805,-401.65506811,0.0003041,120]
[378519255,1754891464818,-400.0,0.0003041,120]
[378519256,1754891464829,-400.0,0.0003041,120]
[378519257,1754891464841,-523.69,0.0003041,120]
[378519258,1754891464853,-400.0,0.0003041,120]
[378519259,1754891464864,-484.69,0.0003041,120]
[378519260,1754891464876,-400.0,0.0003041,120]
[378519261,1754891464887,-400.0,0.0003041,120]
[378519262,1754891464899,-407.71333033,0.0003041,120]
[378519263,1754891464910,-400.0,0.0003041,120]
[378519264,1754891464922,-1288.8,0.0003041,120]
[378519265,1754891464933,-400.0,0.0003041,120]
[378519266,1754891464945,-703.46,0.0003041,120]
[378519267,1754891464957,-409.88998908,0.0003041,120]
[378519268,1754891464968,-400.0,0.0003041,120]
[378519269,1754891464980,-400.0,0.0003041,120]
[378519270,1754891464992,-500.0,0.0003041,120]
[378519271,1754891465004,-400.0,0.0003041,120]
[378519272,1754891465017,-400.0,0.0003041,120]
[378519273,1754891465033,-400.0,0.0003041,120]
[378519274,1754891465045,-400.0,0.0003041,120]
[378519275,1754891465056,-400.0,0.0003041,120]
[378519276,1754891465069,-400.0,0.0003041,120]
[378519277,1754891465081,-580.18,0.0003041,120]
[378519278,1754891465093,-400.0,0.0003041,120]
[378519279,1754891465107,-400.0,0.0003041,120]
[378519280,1754891465121,-400.0,0.0003041,120]
[378519281,1754891465133,-400.0,0.0003041,120]
[378519282,1754891465145,-400.0,0.0003041,120]
[378519283,1754891465157,-400.0,0.0003041,120]
[378519284,1754891465168,-400.0,0.0003041,120]
[378519285,1754891465179,-553.46,0.0003041,120]
[378519286,1754891465191,-400.0,0.0003041,120]
[378519287,1754891465204,-400.0,0.0003041,120]
[378519288,1754891465216,-400.0,0.0003041,120]
[378519289,1754891465227,-780.84,0.0003041,120]
[378519291,1754891465239,-155.128449,0.0003041,120]
[378519292,1754891465251,-400.0,0.0003041,120]
[378519293,1754891465263,-400.0,0.0003041,120]
[378519294,1754891465275,-719.739299,0.0003041,120]
[378519295,1754891465287,-400.0,0.0003041,120]
[378519296,1754891465299,-1184.820535,0.0003041,120]
[378519297,1754891465311,-400.0,0.0003041,120]
[378519298,1754891465323,-735.93,0.0003041,120]
[378519299,1754891465335,-400.0,0.0003041,120]
[378519300,1754891465347,-478.24749965,0.0003041,120]
[378519301,1754891465359,-400.0,0.0003041,120]
[378519302,1754891465371,-400.0,0.0003041,120]
[378519303,1754891465383,-400.0,0.0003041,120]
[378519304,1754891465395,-400.0,0.0003041,120]
[378519305,1754891465407,-901.14,0.0003041,120]
[378519306,1754891465419,-489.78,0.0003041,120]
[378519307,1754891465431,-400.0,0.0003041,120]
[378519309,1754891465443,-400.0,0.0003041,120]
[378519310,1754891465455,-400.0,0.0003041,120]
[378519311,1754891465466,-986.07,0.0003041,120]
[378519312,1754891465478,-400.0,0.0003041,120]
[378519313,1754891465491,-400.0,0.0003041,120]
[378519314,1754891465503,-402.75981011,0.0003041,120]
[378519315,1754891465514,-402.17931156,0.0003041,120]
[378519316,1754891465526,-400.0,0.0003041,120]
[378519317,1754891465538,-400.0,0.0003041,120]
[378519318,1754891465550,-1117.759498,0.0003041,120]
[378519319,1754891465562,-719.93,0.0003041,120]
[378519320,1754891465575,-400.0,0.0003041,120]
[378519321,1754891465587,-417.46,0.0003041,120]
[378519322,1754891465599,-400.0,0.0003041,120]
[378519323,1754891465612,-400.0,0.0003041,120]
[378519324,1754891465623,-400.0,0.0003041,120]
[378519325,1754891465635,-897.29,0.0003041,120]
[378519326,1754891465646,-400.0,0.0003041,120]
[378519327,1754891465659,-400.0,0.0003041,120]
[378519328,1754891465671,-588.91,0.0003041,120]
[378519329,1754891465683,-400.0,0.0003041,60]
[378519330,1754891465695,-407.79021553,0.0003041,120]
[378519331,1754891465706,-400.0,0.0003041,120]
[378519332,1754891465719,-163.364013,0.0003041,120]
[378519333,1754891465731,-400.0,0.0003041,120]
[378519334,1754891465742,-400.0,0.0003041,120]
[378519335,1754891465754,-400.0,0.0003041,120]
[378519336,1754891465766,-206.99,0.0003041,5]
[378519337,1754891465778,-400.0,0.0003041,120]
[378519338,1754891465789,-400.0,0.0003041,120]
[378519339,1754891465802,-400.0,0.0003041,120]
[378519340,1754891465813,-409.89774534,0.0003041,120]
[378519341,1754891465824,-400.0,0.0003041,120]
[378519342,1754891465836,-405.48424814,0.0003041,120]
[378519343,1754891465848,-400.0,0.0003041,120]
[378519344,1754891465860,-400.0,0.0003041,120]
[378519345,1754891465872,-400.0,0.0003041,120]
[378519346,1754891465884,-400.0,0.0003041,120]
[378519347,1754891465896,-400.0,0.0003041,120]
[378519348,1754891465908,-400.0,0.0003041,120]
[378519349,1754891465920,-400.0,0.0003041,120]
[378519350,1754891465932,-400.0,0.0003041,120]
[378519351,1754891465944,-400.0,0.0003041,120]
[378519352,1754891465955,-400.0,0.0003041,120]
[378519353,1754891465967,-716.12,0.0003041,120]
[378519354,1754891465978,-400.0,0.0003041,120]
[378519355,1754891465990,-400.0,0.0003041,120]
[378519356,1754891466002,-460.0,0.0003041,120]
[378519357,1754891466014,-400.0,0.0003041,120]
[378519358,1754891466028,-874.75,0.0003041,120]
[378519359,1754891466040,-400.0,0.0003041,120]
[378519360,1754891466051,-400.0,0.0003041,120]
[378519361,1754891466063,-400.0,0.0003041,120]
[378519362,1754891466077,-474.26,0.0003041,120]
[378519363,1754891466089,-407.3623493,0.0003041,120]
[378519364,1754891466105,-400.0,0.0003041,120]
[378519365,1754891466118,-400.0,0.0003041,120]
[378519366,1754891466130,-400.0,0.0003041,120]
[378519367,1754891466141,-400.0,0.0003041,120]
[378519368,1754891466153,-403.82056069,0.0003041,120]
[378519369,1754891466164,-400.0,0.0003041,120]
[378519370,1754891466178,-400.0,0.0003041,120]
[378519371,1754891466189,-411.15823919,0.0003041,120]
[378519372,1754891466200,-400.0,0.0003041,120]
[378519373,1754891466212,-401.66379107,0.0003041,120]
[378519374,1754891466224,-400.0,0.0003041,120]
[378519375,1754891466236,-400.0,0.0003041,120]
[378519376,1754891466247,-400.0,0.0003041,120]
[378519377,1754891466260,-684.36,0.0003041,120]
[378519378,1754891466273,-400.0,0.0003041,120]
[378519379,1754891466795,-402.65344757,0.0003041,120]
[378519380,1754891466815,-400.0,0.0003041,120]
[378519381,1754891466835,-665.8,0.0003041,120]
[378519382,1754891466863,-400.0,0.0003041,120]
[378519383,1754891466881,-400.0,0.0003041,120]
[378519384,1754891466891,-427.8916695,0.0003041,120]
[378519385,1754891466901,-400.0,0.0003041,120]
[378519386,1754891466911,-3248.26,0.0003041,120]
[378519387,1754891466922,-401.51942323,0.0003041,120]
[378519388,1754891466932,-400.0,0.0003041,120]
[378519389,1754891466945,-400.0,0.0003041,120]
[378519390,1754891466954,-400.0,0.0003041,120]
[378519391,1754891466964,-400.0,0.0003041,120]
[378519392,1754891466974,-400.0,0.0003041,120]
[378519393,1754891466983,-1017.45,0.0003041,120]
[378519394,1754891466994,-400.0,0.0003041,120]
[378519395,1754891467004,-830.49,0.0003041,120]
[378519396,1754891467015,-400.0,0.0003041,120]
[378519397,1754891467028,-400.0,0.0003041,120]
[378519398,1754891467039,-803.75,0.0003041,120]
[378519399,1754891467048,-400.0,0.0003041,120]
[378519400,1754891467059,-400.0,0.0003041,120]
[378519401,1754891467072,-400.0,0.0003041,120]
[378519402,1754891467083,-1028.33,0.0003041,120]
[378519403,1754891467095,-400.0,0.0003041,120]
[378519404,1754891467108,-400.0,0.0003041,120]
[378519405,1754891467118,-400.0,0.0003041,120]
[378519406,1754891467127,-400.0,0.0003041,120]
[378519407,1754891467137,-493.39,0.0003041,120]
[378519408,1754891467146,-400.0,0.0003041,120]
[378519409,1754891467155,-482.47,0.0003041,120]
[378519410,1754891467165,-400.0,0.0003041,120]
[378519411,1754891467174,-400.0,0.0003041,120]
[378519412,1754891467183,-412.49493264,0.0003041,120]
[378519413,1754891467193,-400.0,0.0003041,120]
[378519414,1754891467202,-400.0,0.0003041,120]
[378519415,1754891467212,-429.69,0.0003041,120]
[378519416,1754891467221,-1153.22,0.0003041,120]
[378519417,1754891467231,-404.96646543,0.0003041,120]
[378519418,1754891467240,-400.0,0.0003041,120]
[378519419,1754891467250,-400.0,0.0003041,120]
[378519420,1754891467264,-193.51622795,0.0003041,120]
[378519421,1754891467279,-266.2,0.0003041,120]
[378519422,1754891467288,-669.15,0.0003041,120]
[378519423,1754891467297,-643.88,0.0003041,120]
[378519424,1754891467307,-262.68319736,0.0003041,120]
[378519425,1754891467317,-242.65033189,0.0003041,120]
[378519426,1754891467327,-400.0,0.0003041,120]
[378519427,1754891467336,-400.0,0.0003041,120]
[378519428,1754891467345,-400.0,0.0003041,120]
[378519429,1754891467354,-400.0,0.0003041,120]
[378519430,1754891467364,-401.90735291,0.0003041,120]
[378519431,1754891467373,-400.0,0.0003041,120]
[378519432,1754891467382,-400.0,0.0003041,120]
[378519433,1754891467392,-400.0,0.0003041,120]
[378519434,1754891467402,-400.0,0.0003041,120]
[378519435,1754891467412,-400.0,0.0003041,120]
[378519436,1754891467422,-400.0,0.0003041,120]
[378519437,1754891467432,-1218.38,0.0003041,120]
[378519438,1754891467442,-400.0,0.0003041,120]
[378519439,1754891467451,-400.0,0.0003041,120]
[378519440,1754891467461,-983.41,0.0003041,120]
[378519441,1754891467471,-400.0,0.0003041,120]
[378519442,1754891467482,-400.0,0.0003041,120]
[378519443,1754891467491,-400.0,0.0003041,120]
[378519444,1754891467501,-428.39709549,0.0003041,120]
[378519445,1754891467511,-400.0,0.0003041,120]
[378519446,1754891467520,-1757.86,0.0003041,120]
[378519447,1754891467530,-400.0,0.0003041,120]
[378519448,1754891467540,-400.0,0.0003041,120]
[378519449,1754891467549,-1423.86,0.0003041,120]
[378519450,1754891467559,-2008.82,0.0003041,120]
[378519451,1754891467569,-400.0,0.0003041,120]
[378519452,1754891467578,-406.37298802,0.0003041,120]
[378519453,1754891467587,-400.0,0.0003041,120]
[378519454,1754891467598,-1305.2,0.0003041,120]
[378519455,1754891467607,-400.0,0.0003041,120]
[378519456,1754891467617,-400.0,0.0003041,120]
[378519457,1754891467626,-400.0,0.0003041,120]
[378519458,1754891467635,-400.0,0.0003041,120]
[378519459,1754891467644,-400.0,0.0003041,120]
[378519460,1754891467654,-400.0,0.0003041,120]
[378519461,1754891467664,-1003.95,0.0003041,120]
[378519462,1754891467673,-587.62,0.0003041,120]
[378519463,1754891467683,-400.0,0.0003041,120]
[378519464,1754891467692,-400.0,0.0003041,120]
[378519465,1754891467702,-400.0,0.0003041,120]
[378519466,1754891467714,-400.0,0.0003041,2]
[378519467,1754891467724,-400.0,0.0003041,120]
[378519468,1754891467734,-400.0,0.0003041,120]
[378519469,1754891467743,-400.6077409,0.0003041,2]
[378519470,1754891467753,-504.83,0.0003041,120]
[378519471,1754891467763,-746.97,0.0003041,120]
[378519472,1754891467772,-651.49,0.0003041,120]
[378519473,1754891467782,-404.67624412,0.0003041,120]
[378519474,1754891467791,-1092.91,0.0003041,120]
[378519475,1754891467800,-708.45,0.0003041,120]
[378519476,1754891467809,-400.0,0.0003041,120]
[378519477,1754891467821,-400.0,0.0003041,120]
[378519478,1754891467830,-400.0,0.0003041,120]
[378519479,1754891467839,-400.0,0.0003041,120]
[378519480,1754891467848,-401.90012995,0.0003041,120]
[378519481,1754891467857,-738.46,0.0003041,120]
[378519482,1754891467866,-1057.03,0.0003041,120]
[378519483,1754891467876,-400.0,0.0003041,120]
[378519484,1754891467885,-556.14,0.0003041,120]
[378519485,1754891467894,-740.77,0.0003041,120]
[378519486,1754891467904,-400.0,0.0003041,120]
[378519487,1754891467913,-400.0,0.0003041,120]
[378519488,1754891467923,-400.0,0.0003041,120]
[378519489,1754891467932,-401.49220888,0.0003041,120]
[378519490,1754891467942,-1283.41,0.0003041,120]
[378519491,1754891467951,-483.79,0.0003041,120]
[378519492,1754891467960,-400.0,0.0003041,120]
[378519493,1754891467969,-549.16,0.0003041,120]
[378519494,1754891467979,-400.0,0.0003041,120]
[378519495,1754891467988,-400.0,0.0003041,120]
[378519496,1754891467998,-384.16068882,0.0003041,120]
[378519497,1754891468008,-722.22,0.0003041,120]
[378519498,1754891468018,-1531.6,0.0003041,120]
[378519499,1754891468030,-419.47,0.0003041,120]
[378519500,1754891468041,-495.35,0.0003041,120]
[378519501,1754891468052,-400.0,0.0003041,120]
[378519502,1754891468063,-400.0,0.0003041,120]
[378519503,1754891468074,-1359.2,0.0003041,120]
[378519504,1754891468084,-270.31688556,0.0003041,120]
[378519505,1754891468093,-656.16,0.0003041,120]
[378519506,1754891468103,-464.94,0.0003041,120]
[378519507,1754891468112,-400.0,0.0003041,120]
[378519508,1754891468122,-400.0,0.0003041,120]
[378519509,1754891468131,-1096.86,0.0003041,120]
[378519510,1754891468140,-400.0,0.0003041,120]
[378519511,1754891468149,-854.58,0.0003041,120]
[378519512,1754891468159,-400.0,0.0003041,120]
[378519513,1754891468168,-869.38,0.0003041,120]
[378519514,1754891468177,-400.0,0.0003041,120]
[378519515,1754891468186,-400.0,0.0003041,120]
[378519516,1754891468196,-956.01,0.0003041,120]
[378519517,1754891468205,-757.35,0.0003041,120]
[378519518,1754891468214,-400.0,0.0003041,120]
[378519519,1754891468223,-400.0,0.0003041,120]
[378519520,1754891468233,-1683.01,0.0003041,120]
[378519521,1754891468244,-979.59,0.0003041,120]
[378519522,1754891468254,-692.77,0.0003041,120]
[378519523,1754891468263,-400.0,0.0003041,120]
[378519524,1754891468272,-400.0,0.0003041,120]
[378519525,1754891468282,-1080.16,0.0003041,120]
[378519526,1754891468296,-400.0,0.0003041,120]
[378519527,1754891468306,-937.48,0.0003041,120]
[378519528,1754891468315,-400.0,0.0003041,120]
[378519529,1754891468324,-862.55,0.0003041,120]
[378519530,1754891468333,-400.0,0.0003041,2]
[378519531,1754891468343,-400.0,0.0003041,120]
[378519532,1754891468352,-400.0,0.0003041,120]
[378519533,1754891468361,-400.0,0.0003041,120]
[378519534,1754891468371,-400.0,0.0003041,120]
[378519535,1754891468380,-400.0,0.0003041,120]
[378519536,1754891468390,-418.66,0.0003041,120]
[378519537,1754891468399,-617.12,0.0003041,120]
[378519538,1754891468408,-1550.1,0.0003041,2]
[378519539,1754891468418,-400.919969,0.0003041,7]
[378519540,1754891468427,-534.97346174,0.0003041,120]
[378519541,1754891468436,-616.29,0.0003041,120]
[378519542,1754891468446,-400.0,0.0003041,120]
[378519543,1754891468456,-439.74,0.0003041,120]
[378519544,1754891468465,-1266.19,0.0003041,120]
[378519545,1754891468475,-1002.47,0.0003041,120]
[378519546,1754891468484,-400.0,0.0003041,120]
[378519547,1754891468493,-400.0,0.0003041,120]
[378519548,1754891468502,-400.0,0.0003041,120]
[378519549,1754891468511,-400.0,0.0003041,120]
[378519550,1754891468524,-400.0,0.0003041,120]
[378519551,1754891468534,-400.0,0.0003041,120]
[378519552,1754891468543,-430.73,0.0003041,120]
[378519553,1754891468552,-400.0,0.0003041,120]
[378519554,1754891468562,-686.84,0.0003041,120]
[378519555,1754891468571,-407.69652657,0.0003041,120]
[378519556,1754891468580,-720.44,0.0003041,120]
[378519557,1754891468590,-541.26,0.0003041,120]
[378519558,1754891468599,-410.81343716,0.0003041,120]
[378519559,1754891468608,-704.54,0.0003041,120]
[378519560,1754891468617,-519.50888545,0.0003041,120]
[378519561,1754891468626,-400.0,0.0003041,120]
[378519562,1754891468635,-825.09,0.0003041,120]
[378519563,1754891468645,-715.39,0.0003041,120]
[378519564,1754891468654,-1658.08,0.0003041,120]
[378519565,1754891468663,-3097.53,0.0003041,120]
[378519566,1754891468672,-400.0,0.0003041,120]
[378519567,1754891468681,-3042.87,0.0003041,120]
[378519568,1754891468690,-409.07,0.0003041,120]
[378519569,1754891468700,-400.0,0.0003041,120]
[378519570,1754891468709,-400.0,0.0003041,120]
[378519571,1754891468718,-400.0,0.0003041,120]
[378519572,1754891468727,-400.0,0.0003041,120]
[378519573,1754891468736,-400.0,0.0003041,120]
[378519574,1754891468745,-208.2202477,0.0003041,120]
[378519575,1754891468755,-1246.29,0.0003041,120]
[378519576,1754891468763,-941.35,0.0003041,120]
[378519577,1754891468773,-500.0,0.0003041,120]
[378519578,1754891468782,-400.0,0.0003041,120]
[378519579,1754891468791,-400.0,0.0003041,120]
[378519580,1754891468801,-400.0,0.0003041,120]
[378519581,1754891468810,-400.0,0.0003041,120]
[378519582,1754891468820,-519.76,0.0003041,120]
[378519583,1754891468829,-870.4,0.0003041,120]
[378519584,1754891468838,-522.22540168,0.0003041,120]
[378519585,1754891468848,-400.0,0.0003041,120]
[378519586,1754891468857,-400.0,0.0003041,120]
[378519587,1754891468867,-400.0,0.0003041,120]
[378519588,1754891468876,-400.0,0.0003041,120]
[378519589,1754891468885,-530.39844865,0.0003041,120]
[378519590,1754891468895,-686.93,0.0003041,120]
[378519591,1754891468904,-840.77,0.0003041,120]
[378519592,1754891468914,-527.59614528,0.0003041,120]
[378519593,1754891468923,-460.0,0.0003041,120]
[378519594,1754891468933,-400.0,0.0003041,120]
[378519595,1754891468942,-401.94823118,0.0003041,120]
[378519596,1754891468951,-607.7,0.0003041,120]
[378519597,1754891468961,-400.0,0.0003041,120]
[378519598,1754891468970,-400.0,0.0003041,120]
[378519599,1754891468980,-457.27,0.0003041,120]
[378519600,1754891468989,-400.0,0.0003041,120]
[378519601,1754891468998,-1463.4,0.0003041,120]
[378519602,1754891469008,-400.0,0.0003041,120]
[378519603,1754891469017,-4336.73,0.0003041,120]
[378519604,1754891469030,-400.0,0.0003041,120]
[378519605,1754891469039,-480.33,0.0003041,120]
[378519606,1754891469049,-400.0,0.0003041,120]
[378519607,1754891469058,-1473.39,0.0003041,120]
[378519608,1754891469069,-1323.53,0.0003041,120]
[378519609,1754891469079,-973.69,0.0003041,120]
[378519610,1754891469089,-1444.39,0.0003041,120]
[378519611,1754891469099,-448.25,0.0003041,120]
[378519612,1754891469113,-400.0,0.0003041,120]
[378519613,1754891469133,-404.14,0.0003041,120]
[378519614,1754891469143,-400.0,0.0003041,7]
[378519615,1754891469152,-723.61,0.0003041,60]
[378519616,1754891469161,-400.0,0.0003041,120]
[378519617,1754891469171,-1416.82,0.0003041,120]
[378519618,1754891469180,-400.0,0.0003041,120]
[378519619,1754891469189,-388.56231347,0.0003041,120]
[378519620,1754891469199,-500.57,0.0003041,120]
[378519621,1754891469208,-1154.41,0.0003041,120]
[378519622,1754891469217,-530.12005398,0.0003041,120]
[378519623,1754891469227,-1155.23,0.0003041,120]
[378519624,1754891469236,-400.0,0.0003041,120]
[378519625,1754891469245,-1002.07,0.0003041,120]
[378519626,1754891469255,-949.86,0.0003041,120]
[378519627,1754891469264,-6391.04,0.0003041,120]
[378519628,1754891469273,-830.65,0.0003041,120]
[378519629,1754891469282,-1084.61,0.0003041,120]
[378519630,1754891469292,-174.34141517,0.0003041,120]
[378519631,1754891469498,-400.0,0.0003041,120]
[378519632,1754891469516,-706.63,0.0003041,120]
[378519633,1754891469535,-400.0,0.0003041,120]
[378519634,1754891469544,-758.68,0.0003041,120]
[378519635,1754891469553,-550.62,0.0003041,120]
[378519636,1754891469563,-841.96,0.0003041,120]
[378519637,1754891469574,-400.0,0.0003041,120]
[378519638,1754891469583,-1369.25,0.0003041,120]
[378519639,1754891469593,-1734.29,0.0003041,120]
[378519640,1754891469603,-400.0,0.0003041,120]
[378519641,1754891469613,-400.0,0.0003041,120]
[378519642,1754891469622,-1110.31,0.0003041,120]
[378519643,1754891469631,-964.85,0.0003041,120]
[378519644,1754891469640,-400.0,0.0003041,120]
[378519645,1754891469650,-571.91,0.0003041,120]
[378519646,1754891469660,-649.02,0.0003041,120]
[378519647,1754891469669,-847.15,0.0003041,120]
[378519648,1754891469679,-536.57850067,0.0003041,120]
[378519649,1754891469688,-501.83486115,0.0003041,120]
[378519650,1754891469697,-680.42,0.0003041,120]
[378519651,1754891469706,-400.0,0.0003041,120]
[378519652,1754891469715,-7989.16,0.0003041,120]
[378519653,1754891469724,-373.60635905,0.0003041,120]
[378519654,1754891469734,-542.52,0.0003041,120]
[378519655,1754891469743,-1445.95,0.0003041,120]
[378519656,1754891469752,-400.0,0.0003041,120]
[378519657,1754891469761,-400.0,0.0003041,120]
[378519658,1754891469770,-400.0,0.0003041,120]
[378519659,1754891469780,-400.0,0.0003041,120]
[378519660,1754891469790,-400.0,0.0003041,120]
[378519661,1754891469799,-400.0,0.0003041,120]
[378519662,1754891469808,-400.0,0.0003041,120]
[378519663,1754891469818,-401.83381073,0.0003041,120]
[378519664,1754891469827,-400.0,0.0003041,120]
[378519665,1754891469836,-1098.82,0.0003041,120]
[378519666,1754891469845,-400.0,0.0003041,120]
[378519667,1754891469854,-537.11,0.0003041,30]
[378519668,1754891469863,-400.0,0.0003041,120]
[378519669,1754891469873,-1636.59,0.0003041,120]
[378519670,1754891469883,-343.8171236,0.0003041,120]
[378519671,1754891469892,-1285.68,0.0003041,120]
[378519672,1754891469901,-277.99622587,0.0003041,120]
[378519673,1754891469910,-400.0,0.0003041,120]
[378519674,1754891469919,-153.23770444,0.0003041,120]
[378519675,1754891469929,-316.83199778,0.0003041,120]
[378519676,1754891470619,-486.18800222,0.0003041,120]
[378519677,1754891470629,-400.0,0.0003041,120]
[378519678,1754891470639,-400.0,0.0003041,120]
[378519679,1754891470648,-241.78230095,0.0003041,120]
[378519680,1754891471463,-567.28,0.00017694,2]
[378519681,1754891471472,-567.28,0.00018537,2]
[378519682,1754891471481,-67.2126864,0.00018999,2]
[378519683,1754891472263,-940.0966136,0.00018999,2]
[378519684,1754891472273,-567.28,0.00019379,2]
[378519685,1754891472282,-716.0,0.00019598,2]
[378519686,1754891472291,-888.0,0.00019679,3]
[378519687,1754891472300,-567.28,0.00020222,2]
[378519688,1754891472309,-888.0,0.00020787,3]
[378519689,1754891472318,-1776.0,0.00021919,3]
[378519690,1754891472327,-716.0,0.00022598,2]